[Event "Titled Tuesday Blitz May 31 Early 2022"]
[White "Gunina, Valentina"]
[Black "Paravyan, David"]
[WhiteFideId "4167570"]
[BlackFideId "4194985"]
[WhiteElo "2381"]
[BlackElo "2569"]
[Result "1/2-1/2"]
[Round "08"]
[TimeControl "180+1"]
[Date "2022.05.31"]
[WhiteClock "0:00:14"]
[BlackClock "0:00:05"]

1. d4 {[%clk 0:03:00]}  Nf6 {[%clk 0:02:59]} 2. c4 {[%clk 0:03:00]}  g6 {[%clk 0:02:59]} 3. Nc3 {[%clk 0:03:00]}  d5 {[%clk 0:02:59]} 4. Nf3 {[%clk 0:02:59]}  Bg7 {[%clk 0:02:58]} 5. Bg5 {[%clk 0:02:59]}  Ne4 {[%clk 0:02:58]} 6. Bf4 {[%clk 0:03:00]}  Nxc3 {[%clk 0:02:56]} 7. bxc3 {[%clk 0:02:05]}  c5 {[%clk 0:02:56]} 8. e3 {[%clk 0:02:05]}  O-O {[%clk 0:02:52]} 9. cxd5 {[%clk 0:02:04]}  Qxd5 {[%clk 0:02:53]} 10. Be2 {[%clk 0:02:04]}  cxd4 {[%clk 0:02:54]} 11. cxd4 {[%clk 0:02:04]}  Qa5+ {[%clk 0:02:54]} 12. Qd2 {[%clk 0:02:04]}  Qxd2+ {[%clk 0:02:55]} 13. Kxd2 {[%clk 0:02:05]}  Nc6 {[%clk 0:02:56]} 14. Rhb1 {[%clk 0:02:05]}  b6 {[%clk 0:02:23]} 15. Rc1 {[%clk 0:02:01]}  Bb7 {[%clk 0:02:21]} 16. Rc3 {[%clk 0:01:54]}  e5 {[%clk 0:01:52]} 17. dxe5 {[%clk 0:01:48]}  Rfe8 {[%clk 0:01:52]} 18. Rac1 {[%clk 0:01:41]}  Nxe5 {[%clk 0:01:52]} 19. Nxe5 {[%clk 0:01:38]}  Bxe5 {[%clk 0:01:48]} 20. Bxe5 {[%clk 0:01:29]}  Rxe5 {[%clk 0:01:49]} 21. f3 {[%clk 0:01:29]}  Rd8+ {[%clk 0:01:44]} 22. Ke1 {[%clk 0:01:28]}  Kf8 {[%clk 0:01:29]} 23. Rc7 {[%clk 0:01:26]}  Re7 {[%clk 0:01:30]} 24. e4 {[%clk 0:01:24]}  Rdd7 {[%clk 0:01:28]} 25. Rxd7 {[%clk 0:01:24]}  Rxd7 {[%clk 0:01:29]} 26. a4 {[%clk 0:01:24]}  Re7 {[%clk 0:01:19]} 27. a5 {[%clk 0:01:22]}  bxa5 {[%clk 0:01:16]} 28. Rc5 {[%clk 0:01:22]}  a6 {[%clk 0:01:15]} 29. Rxa5 {[%clk 0:01:22]}  Re6 {[%clk 0:01:15]} 30. Kd2 {[%clk 0:01:21]}  Rb6 {[%clk 0:01:15]} 31. Kc3 {[%clk 0:01:21]}  Kg7 {[%clk 0:01:04]} 32. Bc4 {[%clk 0:01:18]}  Bc8 {[%clk 0:00:56]} 33. h4 {[%clk 0:01:12]}  Rc6 {[%clk 0:00:51]} 34. Kd4 {[%clk 0:01:12]}  h5 {[%clk 0:00:47]} 35. Bd5 {[%clk 0:00:43]}  Rb6 {[%clk 0:00:42]} 36. Ra2 {[%clk 0:00:43]}  Be6 {[%clk 0:00:42]} 37. Kc5 {[%clk 0:00:41]}  Rb5+ {[%clk 0:00:37]} 38. Kd6 {[%clk 0:00:35]}  Kf6 {[%clk 0:00:25]} 39. g4 {[%clk 0:00:31]}  hxg4 {[%clk 0:00:18]} 40. fxg4 {[%clk 0:00:32]}  Bxg4 {[%clk 0:00:16]} 41. Rf2+ {[%clk 0:00:31]}  Kg7 {[%clk 0:00:16]} 42. Rxf7+ {[%clk 0:00:31]}  Kh6 {[%clk 0:00:17]} 43. Ra7 {[%clk 0:00:31]}  a5 {[%clk 0:00:11]} 44. Bg8 {[%clk 0:00:20]}  g5 {[%clk 0:00:07]} 45. Bc4 {[%clk 0:00:19]}  Rb6+ {[%clk 0:00:06]} 46. Kc5 {[%clk 0:00:20]}  Rb8 {[%clk 0:00:06]} 47. hxg5+ {[%clk 0:00:19]}  Kxg5 {[%clk 0:00:07]} 48. Rxa5 {[%clk 0:00:18]}  Kf4 {[%clk 0:00:07]} 49. Bd5 {[%clk 0:00:19]}  Ke5 {[%clk 0:00:06]} 50. Ra7 {[%clk 0:00:18]}  Rc8+ {[%clk 0:00:05]} 51. Kb6 {[%clk 0:00:18]}  Bf3 {[%clk 0:00:06]} 52. Re7+ {[%clk 0:00:16]}  Kd4 {[%clk 0:00:06]} 53. Rd7 {[%clk 0:00:15]}  Rc1 {[%clk 0:00:06]} 54. Bc6+ {[%clk 0:00:15]}  Ke5 {[%clk 0:00:06]} 55. Rd5+ {[%clk 0:00:15]}  Kf4 {[%clk 0:00:04]} 56. Rf5+ {[%clk 0:00:15]}  Ke3 {[%clk 0:00:05]} 57. Rf8 {[%clk 0:00:15]}  Bxe4 {[%clk 0:00:04]} 58. Bxe4 {[%clk 0:00:14]}  Kxe4 {[%clk 0:00:05]} 1/2-1/2


[Site "https://www.chess.com"]

[Event "Titled Tuesday Blitz May 31 Early 2022"]
[White "Haas, Michael"]
[Black "Estrada Nieto, Julian"]
[WhiteFideId "1629514"]
[BlackFideId "5101018"]
[WhiteElo "1982"]
[BlackElo "2252"]
[Result "1-0"]
[Round "08"]
[TimeControl "180+1"]
[Date "2022.06.01"]
[WhiteClock "0:00:15"]
[BlackClock "0:00:01"]

1. d4 {[%clk 0:02:57]}  Nf6 {[%clk 0:02:58]} 2. c4 {[%clk 0:02:57]}  e6 {[%clk 0:02:58]} 3. g3 {[%clk 0:02:57]}  c5 {[%clk 0:02:56]} 4. d5 {[%clk 0:02:57]}  exd5 {[%clk 0:02:56]} 5. cxd5 {[%clk 0:02:58]}  d6 {[%clk 0:02:56]} 6. Nc3 {[%clk 0:02:57]}  g6 {[%clk 0:02:57]} 7. Bg2 {[%clk 0:02:57]}  Bg7 {[%clk 0:02:57]} 8. Nf3 {[%clk 0:02:58]}  O-O {[%clk 0:02:57]} 9. O-O {[%clk 0:02:58]}  a6 {[%clk 0:02:57]} 10. a4 {[%clk 0:02:58]}  Re8 {[%clk 0:02:41]} 11. Bf4 {[%clk 0:02:56]}  h6 {[%clk 0:02:40]} 12. h3 {[%clk 0:02:33]}  g5 {[%clk 0:02:35]} 13. Bd2 {[%clk 0:02:33]}  Bf5 {[%clk 0:02:34]} 14. h4 {[%clk 0:02:31]}  g4 {[%clk 0:02:33]} 15. Ne1 {[%clk 0:02:32]}  Nbd7 {[%clk 0:02:27]} 16. Nc2 {[%clk 0:02:30]}  Ne4 {[%clk 0:02:06]} 17. Ne3 {[%clk 0:02:17]}  Nxd2 {[%clk 0:01:45]} 18. Qxd2 {[%clk 0:02:18]}  Qf6 {[%clk 0:01:38]} 19. Nxf5 {[%clk 0:01:48]}  Qxf5 {[%clk 0:01:37]} 20. e4 {[%clk 0:01:47]}  Qf6 {[%clk 0:01:26]} 21. a5 {[%clk 0:01:40]}  Ne5 {[%clk 0:01:25]} 22. Qe3 {[%clk 0:00:41]}  Nc4 {[%clk 0:01:08]} 23. Qe2 {[%clk 0:00:38]}  Ne5 {[%clk 0:00:54]} 24. f4 {[%clk 0:00:32]}  gxf3 {[%clk 0:00:52]} 25. Bxf3 {[%clk 0:00:33]}  Qg6 {[%clk 0:00:35]} 26. Kh2 {[%clk 0:00:30]}  Nxf3+ {[%clk 0:00:31]} 27. Qxf3 {[%clk 0:00:30]}  Bxc3 {[%clk 0:00:29]} 28. bxc3 {[%clk 0:00:31]}  Rxe4 {[%clk 0:00:29]} 29. Rab1 {[%clk 0:00:26]}  Re7 {[%clk 0:00:19]} 30. Qf6 {[%clk 0:00:19]}  Rae8 {[%clk 0:00:13]} 31. Qxg6+ {[%clk 0:00:17]}  fxg6 {[%clk 0:00:13]} 32. Rf6 {[%clk 0:00:18]}  Kg7 {[%clk 0:00:13]} 33. Rxd6 {[%clk 0:00:17]}  Re2+ {[%clk 0:00:10]} 34. Kh3 {[%clk 0:00:17]}  R8e7 {[%clk 0:00:10]} 35. Rdb6 {[%clk 0:00:17]}  Rd2 {[%clk 0:00:08]} 36. Rxb7 {[%clk 0:00:17]}  Rxb7 {[%clk 0:00:08]} 37. Rxb7+ {[%clk 0:00:18]}  Kf6 {[%clk 0:00:09]} 38. Rb6+ {[%clk 0:00:18]}  Kf5 {[%clk 0:00:08]} 39. Rxa6 {[%clk 0:00:16]}  Rxd5 {[%clk 0:00:07]} 40. Rc6 {[%clk 0:00:16]}  g5 {[%clk 0:00:06]} 41. hxg5 {[%clk 0:00:15]}  hxg5 {[%clk 0:00:06]} 42. a6 {[%clk 0:00:14]}  g4+ {[%clk 0:00:06]} 43. Kh4 {[%clk 0:00:15]}  Rd1 {[%clk 0:00:06]} 44. Rxc5+ {[%clk 0:00:14]}  Ke4 {[%clk 0:00:07]} 45. Rc4+ {[%clk 0:00:14]}  Kf3 {[%clk 0:00:06]} 46. Rxg4 {[%clk 0:00:14]}  Ra1 {[%clk 0:00:05]} 47. Rg6 {[%clk 0:00:14]}  Rh1+ {[%clk 0:00:04]} 48. Kg5 {[%clk 0:00:14]}  Kxg3 {[%clk 0:00:04]} 49. a7 {[%clk 0:00:14]}  Ra1 {[%clk 0:00:03]} 50. Rg7 {[%clk 0:00:15]}  Kf3 {[%clk 0:00:03]} 51. Re7 {[%clk 0:00:15]}  Ra6 {[%clk 0:00:01]} 52. c4 {[%clk 0:00:16]}  Ra5+ {[%clk 0:00:01]} 53. Kf6 {[%clk 0:00:15]}  Kf4 {[%clk 0:00:01]} 54. c5 {[%clk 0:00:14]}  Ra6+ {[%clk 0:00:01]} 55. Kf7 {[%clk 0:00:14]}  Kf5 {[%clk 0:00:01]} 56. Ke8 {[%clk 0:00:15]} 1-0


[Site "https://www.chess.com"]

[Event "Titled Tuesday Blitz May 31 Early 2022"]
[White "Hasangatin, Ramil"]
[Black "Gaehwiler, Gabriel"]
[WhiteFideId "4122160"]
[BlackFideId "1314530"]
[WhiteElo "2399"]
[BlackElo "2383"]
[Result "1-0"]
[Round "08"]
[TimeControl "180+1"]
[Date "2022.05.31"]
[WhiteClock "0:00:03"]
[BlackClock "0:00:05"]

1. e4 {[%clk 0:03:00]}  e5 {[%clk 0:02:56]} 2. Nf3 {[%clk 0:03:00]}  Nf6 {[%clk 0:02:54]} 3. Nc3 {[%clk 0:03:00]}  Nc6 {[%clk 0:02:53]} 4. d4 {[%clk 0:03:00]}  exd4 {[%clk 0:02:54]} 5. Nxd4 {[%clk 0:03:01]}  Bb4 {[%clk 0:02:52]} 6. Nxc6 {[%clk 0:03:01]}  bxc6 {[%clk 0:02:53]} 7. Bd3 {[%clk 0:03:01]}  d5 {[%clk 0:02:52]} 8. exd5 {[%clk 0:03:02]}  cxd5 {[%clk 0:02:53]} 9. O-O {[%clk 0:03:02]}  O-O {[%clk 0:02:53]} 10. Bg5 {[%clk 0:03:02]}  c6 {[%clk 0:02:52]} 11. Qf3 {[%clk 0:03:01]}  Bd6 {[%clk 0:02:50]} 12. h3 {[%clk 0:03:01]}  h6 {[%clk 0:02:50]} 13. Bxf6 {[%clk 0:03:01]}  Qxf6 {[%clk 0:02:50]} 14. Qxf6 {[%clk 0:03:01]}  gxf6 {[%clk 0:02:51]} 15. Ne2 {[%clk 0:03:01]}  Be5 {[%clk 0:02:52]} 16. Rab1 {[%clk 0:03:01]}  Rb8 {[%clk 0:02:52]} 17. b3 {[%clk 0:03:01]}  a5 {[%clk 0:02:52]} 18. f4 {[%clk 0:02:57]}  Bd6 {[%clk 0:02:52]} 19. Ng3 {[%clk 0:02:56]}  Rd8 {[%clk 0:02:23]} 20. Nh5 {[%clk 0:02:55]}  Be7 {[%clk 0:02:22]} 21. Rfe1 {[%clk 0:02:54]}  Kf8 {[%clk 0:02:21]} 22. Kh2 {[%clk 0:02:49]}  Be6 {[%clk 0:02:17]} 23. Re2 {[%clk 0:02:45]}  Bd6 {[%clk 0:02:02]} 24. Rbe1 {[%clk 0:02:37]}  Bd7 {[%clk 0:01:41]} 25. Kg3 {[%clk 0:02:20]}  Bb4 {[%clk 0:01:40]} 26. Rf1 {[%clk 0:02:17]}  Bc3 {[%clk 0:01:38]} 27. Rf3 {[%clk 0:02:10]}  Ba1 {[%clk 0:01:31]} 28. Kf2 {[%clk 0:02:04]}  Bd4+ {[%clk 0:01:30]} 29. Kf1 {[%clk 0:02:04]}  a4 {[%clk 0:01:30]} 30. Ng3 {[%clk 0:02:01]}  Re8 {[%clk 0:01:30]} 31. Bf5 {[%clk 0:01:57]}  Be6 {[%clk 0:01:28]} 32. Rd3 {[%clk 0:01:54]}  Ba7 {[%clk 0:01:25]} 33. Rd1 {[%clk 0:01:40]}  Rb4 {[%clk 0:01:22]} 34. Bxe6 {[%clk 0:01:14]}  Rxf4+ {[%clk 0:01:18]} 35. Ke1 {[%clk 0:01:14]}  Rxe6 {[%clk 0:01:14]} 36. Kd2 {[%clk 0:00:24]}  Ke7 {[%clk 0:01:00]} 37. Rf1 {[%clk 0:00:23]}  Rd4+ {[%clk 0:00:52]} 38. Kc1 {[%clk 0:00:20]}  axb3 {[%clk 0:00:28]} 39. Nf5+ {[%clk 0:00:14]}  Kd7 {[%clk 0:00:28]} 40. Rxe6 {[%clk 0:00:09]}  bxa2 {[%clk 0:00:06]} 41. Re7+ {[%clk 0:00:09]}  Kd8 {[%clk 0:00:04]} 42. Kb2 {[%clk 0:00:10]}  Rb4+ {[%clk 0:00:03]} 43. Kxa2 {[%clk 0:00:09]}  Bc5 {[%clk 0:00:03]} 44. Rxf7 {[%clk 0:00:08]}  Ra4+ {[%clk 0:00:04]} 45. Kb3 {[%clk 0:00:09]}  Ra3+ {[%clk 0:00:04]} 46. Kb2 {[%clk 0:00:09]}  Ra4 {[%clk 0:00:05]} 47. Rxf6 {[%clk 0:00:07]}  Kc7 {[%clk 0:00:05]} 48. Rf3 {[%clk 0:00:05]}  d4 {[%clk 0:00:04]} 49. Rb3 {[%clk 0:00:05]}  Bb4 {[%clk 0:00:04]} 50. Rf7+ {[%clk 0:00:05]}  Kb6 {[%clk 0:00:05]} 51. Nxd4 {[%clk 0:00:04]}  c5 {[%clk 0:00:05]} 52. c3 {[%clk 0:00:03]} 1-0


[Site "https://www.chess.com"]

[Event "Titled Tuesday Blitz May 31 Early 2022"]
[White "Hirneise, Jens"]
[Black "Matveeva, Olga"]
[WhiteFideId "24614734"]
[BlackFideId "24107018"]
[WhiteElo "2359"]
[BlackElo "2052"]
[Result "1-0"]
[Round "08"]
[TimeControl "180+1"]
[Date "2022.06.01"]
[WhiteClock "0:00:28"]
[BlackClock "0:00:11"]

1. d3 {[%clk 0:02:52]}  Nf6 {[%clk 0:02:59]} 2. Nd2 {[%clk 0:02:53]}  e6 {[%clk 0:02:58]} 3. g3 {[%clk 0:02:52]}  d5 {[%clk 0:02:59]} 4. Bg2 {[%clk 0:02:53]}  Be7 {[%clk 0:02:59]} 5. Ngf3 {[%clk 0:02:52]}  O-O {[%clk 0:02:59]} 6. O-O {[%clk 0:02:52]}  c5 {[%clk 0:03:00]} 7. e4 {[%clk 0:02:47]}  Nc6 {[%clk 0:03:00]} 8. Re1 {[%clk 0:02:46]}  b5 {[%clk 0:02:57]} 9. e5 {[%clk 0:02:40]}  Nd7 {[%clk 0:02:57]} 10. Nf1 {[%clk 0:02:40]}  Qc7 {[%clk 0:02:56]} 11. Bf4 {[%clk 0:02:38]}  a5 {[%clk 0:02:56]} 12. h4 {[%clk 0:02:38]}  b4 {[%clk 0:02:56]} 13. N1h2 {[%clk 0:02:36]}  a4 {[%clk 0:02:55]} 14. h5 {[%clk 0:02:33]}  a3 {[%clk 0:02:54]} 15. b3 {[%clk 0:02:30]}  Nd4 {[%clk 0:02:51]} 16. h6 {[%clk 0:02:23]}  g6 {[%clk 0:02:49]} 17. Ng4 {[%clk 0:02:21]}  Qd8 {[%clk 0:02:28]} 18. Qd2 {[%clk 0:01:55]}  Re8 {[%clk 0:02:10]} 19. c3 {[%clk 0:01:49]}  bxc3 {[%clk 0:02:04]} 20. Qxc3 {[%clk 0:01:50]}  Nf5 {[%clk 0:01:59]} 21. d4 {[%clk 0:01:44]}  cxd4 {[%clk 0:01:56]} 22. Nxd4 {[%clk 0:01:44]}  Nxd4 {[%clk 0:01:55]} 23. Qxd4 {[%clk 0:01:45]}  Bb7 {[%clk 0:01:44]} 24. Rac1 {[%clk 0:01:40]}  Rc8 {[%clk 0:01:40]} 25. Kf1 {[%clk 0:01:39]}  Ba6+ {[%clk 0:01:36]} 26. Kg1 {[%clk 0:01:39]}  Qb6 {[%clk 0:01:36]} 27. Qxb6 {[%clk 0:01:32]}  Nxb6 {[%clk 0:01:36]} 28. Be3 {[%clk 0:01:32]}  Nd7 {[%clk 0:01:34]} 29. Bd4 {[%clk 0:01:28]}  Bb4 {[%clk 0:01:28]} 30. Rxc8 {[%clk 0:01:15]}  Rxc8 {[%clk 0:01:26]} 31. Ra1 {[%clk 0:01:14]}  Kf8 {[%clk 0:01:00]} 32. Bf1 {[%clk 0:01:10]}  Bxf1 {[%clk 0:00:56]} 33. Kxf1 {[%clk 0:01:11]}  Ke7 {[%clk 0:00:55]} 34. Ke2 {[%clk 0:01:08]}  Rc2+ {[%clk 0:00:51]} 35. Ke3 {[%clk 0:01:00]}  g5 {[%clk 0:00:29]} 36. Kd3 {[%clk 0:00:48]}  Rd2+ {[%clk 0:00:27]} 37. Ke3 {[%clk 0:00:48]}  Rc2 {[%clk 0:00:20]} 38. f4 {[%clk 0:00:42]}  gxf4+ {[%clk 0:00:19]} 39. gxf4 {[%clk 0:00:43]}  Rg2 {[%clk 0:00:18]} 40. Kf3 {[%clk 0:00:43]}  Rc2 {[%clk 0:00:17]} 41. Nf6 {[%clk 0:00:39]}  Nxf6 {[%clk 0:00:17]} 42. exf6+ {[%clk 0:00:40]}  Kd7 {[%clk 0:00:16]} 43. Rg1 {[%clk 0:00:40]}  Rxa2 {[%clk 0:00:16]} 44. Rg7 {[%clk 0:00:40]}  Rd2 {[%clk 0:00:16]} 45. Rxf7+ {[%clk 0:00:40]}  Ke8 {[%clk 0:00:16]} 46. Rxh7 {[%clk 0:00:39]}  Rxd4 {[%clk 0:00:16]} 47. Rh8+ {[%clk 0:00:38]}  Kf7 {[%clk 0:00:16]} 48. h7 {[%clk 0:00:38]}  Rd1 {[%clk 0:00:15]} 49. Rb8 {[%clk 0:00:32]}  Rh1 {[%clk 0:00:13]} 50. h8=Q {[%clk 0:00:29]}  Rxh8 {[%clk 0:00:13]} 51. Rxh8 {[%clk 0:00:30]}  Bc3 {[%clk 0:00:12]} 52. Ra8 {[%clk 0:00:28]}  Bb2 {[%clk 0:00:12]} 53. b4 {[%clk 0:00:29]}  Kxf6 {[%clk 0:00:12]} 54. b5 {[%clk 0:00:29]}  Ke7 {[%clk 0:00:12]} 55. b6 {[%clk 0:00:30]}  d4 {[%clk 0:00:10]} 56. b7 {[%clk 0:00:29]}  d3 {[%clk 0:00:11]} 57. b8=Q {[%clk 0:00:28]} 1-0


[Site "https://www.chess.com"]

[Event "Titled Tuesday Blitz May 31 Early 2022"]
[White "Indjic, Aleksandar"]
[Black "Sirosh, Ilja"]
[WhiteFideId "911925"]
[BlackFideId "4500458"]
[WhiteElo "2616"]
[BlackElo "2241"]
[Result "1-0"]
[Round "08"]
[TimeControl "180+1"]
[Date "2022.05.31"]
[WhiteClock "0:02:19"]
[BlackClock "0:01:03"]

1. d4 {[%clk 0:03:00]}  d5 {[%clk 0:02:59]} 2. Nf3 {[%clk 0:03:01]}  Nf6 {[%clk 0:02:59]} 3. Bf4 {[%clk 0:03:01]}  e6 {[%clk 0:02:58]} 4. e3 {[%clk 0:03:01]}  Bd6 {[%clk 0:02:57]} 5. Nbd2 {[%clk 0:03:02]}  O-O {[%clk 0:02:54]} 6. Ne5 {[%clk 0:03:02]}  c5 {[%clk 0:02:50]} 7. c3 {[%clk 0:03:02]}  Nc6 {[%clk 0:02:40]} 8. Bd3 {[%clk 0:03:01]}  Qc7 {[%clk 0:02:39]} 9. Ndf3 {[%clk 0:03:01]}  Ne4 {[%clk 0:02:29]} 10. Nxc6 {[%clk 0:03:00]}  bxc6 {[%clk 0:02:22]} 11. Bxd6 {[%clk 0:02:52]}  Qxd6 {[%clk 0:02:20]} 12. Bxe4 {[%clk 0:02:47]}  dxe4 {[%clk 0:02:20]} 13. Nd2 {[%clk 0:02:48]}  cxd4 {[%clk 0:02:05]} 14. Nxe4 {[%clk 0:02:47]}  Qd5 {[%clk 0:02:03]} 15. Qxd4 {[%clk 0:02:46]}  Qb5 {[%clk 0:01:55]} 16. c4 {[%clk 0:02:41]}  Qa5+ {[%clk 0:01:55]} 17. Qc3 {[%clk 0:02:40]}  Qf5 {[%clk 0:01:53]} 18. Nd6 {[%clk 0:02:40]}  Qg6 {[%clk 0:01:51]} 19. O-O-O {[%clk 0:02:36]}  a5 {[%clk 0:01:46]} 20. f4 {[%clk 0:02:34]}  a4 {[%clk 0:01:44]} 21. c5 {[%clk 0:02:30]}  a3 {[%clk 0:01:44]} 22. b3 {[%clk 0:02:28]}  Qxg2 {[%clk 0:01:35]} 23. Rhg1 {[%clk 0:02:25]}  Qb2+ {[%clk 0:01:31]} 24. Qxb2 {[%clk 0:02:26]}  axb2+ {[%clk 0:01:32]} 25. Kxb2 {[%clk 0:02:26]}  e5 {[%clk 0:01:29]} 26. f5 {[%clk 0:02:25]}  Ba6 {[%clk 0:01:18]} 27. Rd2 {[%clk 0:02:25]}  g6 {[%clk 0:01:11]} 28. e4 {[%clk 0:02:24]}  Kg7 {[%clk 0:01:10]} 29. Kc3 {[%clk 0:02:22]}  h5 {[%clk 0:01:05]} 30. Rdg2 {[%clk 0:02:20]}  h4 {[%clk 0:01:03]} 31. fxg6 {[%clk 0:02:19]} 1-0


[Site "https://www.chess.com"]

[Event "Titled Tuesday Blitz May 31 Early 2022"]
[White "Jaferian, Koosha"]
[Black "Boder, Jan"]
[WhiteFideId "12507440"]
[BlackFideId "16243226"]
[WhiteElo "2030"]
[BlackElo "2064"]
[Result "0-1"]
[Round "08"]
[TimeControl "180+1"]
[Date "2022.06.01"]
[WhiteClock "0:00:02"]
[BlackClock "0:00:09"]

1. Nf3 {[%clk 0:03:00]}  c5 {[%clk 0:02:59]} 2. b3 {[%clk 0:03:01]}  d5 {[%clk 0:02:51]} 3. e3 {[%clk 0:03:01]}  Nf6 {[%clk 0:02:52]} 4. Bb2 {[%clk 0:03:01]}  e6 {[%clk 0:02:43]} 5. Be2 {[%clk 0:03:01]}  Be7 {[%clk 0:02:42]} 6. O-O {[%clk 0:03:02]}  O-O {[%clk 0:02:42]} 7. c4 {[%clk 0:03:03]}  Nc6 {[%clk 0:02:42]} 8. cxd5 {[%clk 0:03:04]}  Nxd5 {[%clk 0:02:42]} 9. d4 {[%clk 0:03:03]}  Bf6 {[%clk 0:02:41]} 10. Na3 {[%clk 0:03:03]}  b6 {[%clk 0:02:41]} 11. Nc4 {[%clk 0:03:03]}  Bb7 {[%clk 0:02:42]} 12. Rc1 {[%clk 0:03:03]}  Rc8 {[%clk 0:02:42]} 13. dxc5 {[%clk 0:03:02]}  bxc5 {[%clk 0:02:41]} 14. Bxf6 {[%clk 0:02:51]}  Qxf6 {[%clk 0:02:42]} 15. Nd6 {[%clk 0:02:48]}  Nc3 {[%clk 0:02:12]} 16. Rxc3 {[%clk 0:02:38]}  Qxc3 {[%clk 0:02:13]} 17. Nxb7 {[%clk 0:02:33]}  Nb4 {[%clk 0:01:55]} 18. a3 {[%clk 0:02:27]}  Nd5 {[%clk 0:01:51]} 19. Nd6 {[%clk 0:02:21]}  Rcd8 {[%clk 0:01:46]} 20. Ne4 {[%clk 0:02:19]}  Qb2 {[%clk 0:01:35]} 21. Bc4 {[%clk 0:01:05]}  Nxe3 {[%clk 0:01:25]} 22. Qc1 {[%clk 0:01:05]}  Nxc4 {[%clk 0:00:59]} 23. bxc4 {[%clk 0:00:59]}  Qb6 {[%clk 0:00:44]} 24. Qe3 {[%clk 0:00:54]}  Rc8 {[%clk 0:00:42]} 25. Ne5 {[%clk 0:00:52]}  Qc7 {[%clk 0:00:32]} 26. Qg3 {[%clk 0:00:41]}  f6 {[%clk 0:00:28]} 27. Nd3 {[%clk 0:00:41]}  Qxg3 {[%clk 0:00:23]} 28. hxg3 {[%clk 0:00:42]}  Rfd8 {[%clk 0:00:23]} 29. Nexc5 {[%clk 0:00:39]}  Rd4 {[%clk 0:00:21]} 30. Re1 {[%clk 0:00:26]}  e5 {[%clk 0:00:21]} 31. Rb1 {[%clk 0:00:14]}  e4 {[%clk 0:00:19]} 32. Nf4 {[%clk 0:00:11]}  Rxc5 {[%clk 0:00:17]} 33. Ne6 {[%clk 0:00:11]}  Rdxc4 {[%clk 0:00:17]} 34. Nxc5 {[%clk 0:00:11]}  Rxc5 {[%clk 0:00:18]} 35. Rb8+ {[%clk 0:00:12]}  Kf7 {[%clk 0:00:19]} 36. Rb7+ {[%clk 0:00:13]}  Kg6 {[%clk 0:00:20]} 37. Rxa7 {[%clk 0:00:13]}  Rc1+ {[%clk 0:00:18]} 38. Kh2 {[%clk 0:00:13]}  Ra1 {[%clk 0:00:19]} 39. g4 {[%clk 0:00:12]}  Rb1 {[%clk 0:00:14]} 40. a4 {[%clk 0:00:11]}  Rb3 {[%clk 0:00:13]} 41. a5 {[%clk 0:00:09]}  Ra3 {[%clk 0:00:14]} 42. a6 {[%clk 0:00:09]}  h6 {[%clk 0:00:15]} 43. Ra8 {[%clk 0:00:09]}  Kg5 {[%clk 0:00:14]} 44. Rg8 {[%clk 0:00:04]}  Kxg4 {[%clk 0:00:11]} 45. Rxg7+ {[%clk 0:00:04]}  Kf5 {[%clk 0:00:12]} 46. a7 {[%clk 0:00:04]}  Ra2 {[%clk 0:00:12]} 47. Rb7 {[%clk 0:00:04]}  Kf4 {[%clk 0:00:10]} 48. Kh3 {[%clk 0:00:03]}  f5 {[%clk 0:00:10]} 49. Kh4 {[%clk 0:00:03]}  Ra1 {[%clk 0:00:08]} 50. Kh5 {[%clk 0:00:01]}  Rh1+ {[%clk 0:00:07]} 51. Kg6 {[%clk 0:00:02]}  Ra1 {[%clk 0:00:06]} 52. Kf7 {[%clk 0:00:02]}  h5 {[%clk 0:00:05]} 53. Ke7 {[%clk 0:00:02]}  h4 {[%clk 0:00:06]} 54. Kd7 {[%clk 0:00:02]}  h3 {[%clk 0:00:06]} 55. gxh3 {[%clk 0:00:02]}  Kf3 {[%clk 0:00:07]} 56. h4 {[%clk 0:00:02]}  Kxf2 {[%clk 0:00:07]} 57. h5 {[%clk 0:00:03]}  e3 {[%clk 0:00:08]} 58. h6 {[%clk 0:00:02]}  e2 {[%clk 0:00:09]} 0-1


[Site "https://www.chess.com"]

[Event "Titled Tuesday Blitz May 31 Early 2022"]
[White "Kim, Sergey"]
[Black "Vajda, Levente"]
[WhiteFideId "13700570"]
[BlackFideId "1203975"]
[WhiteElo "2583"]
[BlackElo "2573"]
[Result "0-1"]
[Round "08"]
[TimeControl "180+1"]
[Date "2022.06.01"]
[WhiteClock "0:00:29"]
[BlackClock "0:00:17"]

1. d4 {[%clk 0:03:00]}  Nf6 {[%clk 0:02:59]} 2. c4 {[%clk 0:03:00]}  c5 {[%clk 0:02:59]} 3. d5 {[%clk 0:03:00]}  b5 {[%clk 0:02:59]} 4. cxb5 {[%clk 0:03:00]}  a6 {[%clk 0:03:00]} 5. b6 {[%clk 0:03:00]}  Qxb6 {[%clk 0:03:00]} 6. Nc3 {[%clk 0:03:00]}  d6 {[%clk 0:03:00]} 7. e4 {[%clk 0:03:00]}  g6 {[%clk 0:03:00]} 8. Nf3 {[%clk 0:02:58]}  Nbd7 {[%clk 0:03:01]} 9. Be2 {[%clk 0:02:59]}  Bg7 {[%clk 0:03:01]} 10. O-O {[%clk 0:02:58]}  O-O {[%clk 0:03:01]} 11. Nd2 {[%clk 0:02:56]}  Ne5 {[%clk 0:02:52]} 12. Kh1 {[%clk 0:02:49]}  g5 {[%clk 0:02:02]} 13. Nc4 {[%clk 0:02:42]}  Nxc4 {[%clk 0:02:02]} 14. Bxc4 {[%clk 0:02:42]}  h6 {[%clk 0:02:01]} 15. Qe2 {[%clk 0:02:32]}  Ng4 {[%clk 0:01:58]} 16. f4 {[%clk 0:02:29]}  gxf4 {[%clk 0:01:58]} 17. Bxf4 {[%clk 0:02:29]}  Ne5 {[%clk 0:01:59]} 18. Rac1 {[%clk 0:02:09]}  Bg4 {[%clk 0:01:55]} 19. Rf3 {[%clk 0:02:08]}  Nxf3 {[%clk 0:01:53]} 20. gxf3 {[%clk 0:02:09]}  Bh5 {[%clk 0:01:54]} 21. Rg1 {[%clk 0:02:07]}  Kh8 {[%clk 0:01:54]} 22. e5 {[%clk 0:02:04]}  dxe5 {[%clk 0:01:38]} 23. Bxe5 {[%clk 0:02:04]}  Bxf3+ {[%clk 0:01:23]} 24. Qxf3 {[%clk 0:02:01]}  Bxe5 {[%clk 0:01:24]} 25. d6 {[%clk 0:01:42]}  Qxd6 {[%clk 0:01:18]} 26. Ne4 {[%clk 0:01:40]}  Qc6 {[%clk 0:01:08]} 27. Qf5 {[%clk 0:01:25]}  Bd4 {[%clk 0:00:57]} 28. Bd5 {[%clk 0:01:24]}  e6 {[%clk 0:00:37]} 29. Bxc6 {[%clk 0:00:50]}  exf5 {[%clk 0:00:37]} 30. Nd6 {[%clk 0:00:46]}  Bxg1 {[%clk 0:00:32]} 31. Bxa8 {[%clk 0:00:45]}  Rxa8 {[%clk 0:00:31]} 32. Kxg1 {[%clk 0:00:45]}  Kg7 {[%clk 0:00:26]} 33. Nxf5+ {[%clk 0:00:44]}  Kg6 {[%clk 0:00:21]} 34. Nd6 {[%clk 0:00:43]}  Rd8 {[%clk 0:00:20]} 35. Ne4 {[%clk 0:00:43]}  c4 {[%clk 0:00:17]} 36. Kf1 {[%clk 0:00:34]}  f5 {[%clk 0:00:17]} 37. Nc5 {[%clk 0:00:33]}  Rd2 {[%clk 0:00:17]} 38. Nxa6 {[%clk 0:00:30]}  Rxb2 {[%clk 0:00:17]} 39. a4 {[%clk 0:00:29]}  c3 {[%clk 0:00:17]} 0-1


[Site "https://www.chess.com"]